fUST/lending_fUST_20260520
["ID","MTS","AMOUNT","RATE_DAILY","PERIOD"]
[422650708,1779206968000,-200.0,6.588e-05,2]
[422650709,1779206977000,-300.0,6.656e-05,2]
[422650710,1779206991000,-372.6446625,6.669e-05,2]
[422650712,1779207005000,-1640.28311028,6.709e-05,2]
[422650715,1779207022000,-441.4529596,6.068e-05,2]
[422650716,1779207022000,-58.5470404,6.809e-05,2]
[422650744,1779207032000,-775.56549,6.926e-05,2]
[422650748,1779207032000,-2594.07984246,7.109e-05,2]
[422650746,1779207032000,-3995.35434547,7.009e-05,2]
[422650742,1779207032000,-300.0,6.925e-05,2]
[422650740,1779207032000,-2623.24489988,6.909e-05,2]
[422650737,1779207032000,-1271.36238513,6.909e-05,2]
[422650727,1779207032000,-1120.78017483,6.809e-05,2]
[422650735,1779207032000,-2342.78415551,6.809e-05,2]
[422650861,1779207038000,-1673.0233569,7.109e-05,2]
[422650868,1779207038000,-138.9766431,7.147e-05,2]
[422650866,1779207038000,-300.0,7.147e-05,2]
[422650864,1779207038000,-300.0,7.147e-05,2]
[422650885,1779207038000,-161.0233569,7.147e-05,2]
[422650886,1779207038000,-300.0,7.147e-05,2]
[422650888,1779207038000,-300.0,7.147e-05,2]
[422650890,1779207038000,-300.0,7.147e-05,2]
[422650910,1779207039000,-500.0,7.721e-05,2]
[422650917,1779207039000,-500.0,7.721e-05,2]
[422650918,1779207039000,-500.0,7.721e-05,2]
[422650914,1779207039000,-500.0,7.721e-05,2]
[422650915,1779207039000,-500.0,7.721e-05,2]
[422650919,1779207039000,-500.0,7.721e-05,2]
[422650922,1779207039000,-620.0,7.721e-05,2]
[422650920,1779207039000,-500.0,7.721e-05,2]
[422650921,1779207039000,-500.0,7.721e-05,2]
[422650928,1779207039000,-500.0,7.721e-05,2]
[422650934,1779207039000,-500.0,7.721e-05,2]
[422650935,1779207039000,-500.0,7.721e-05,2]
[422650923,1779207039000,-500.0,7.721e-05,2]
[422650936,1779207039000,-456.79628951,7.721e-05,2]
[422650925,1779207039000,-500.0,7.721e-05,2]
[422650926,1779207039000,-500.0,7.721e-05,2]
[422650927,1779207039000,-500.0,7.721e-05,2]
[422650909,1779207039000,-349.47149531,7.721e-05,2]
[422650924,1779207039000,-500.0,7.721e-05,2]
[422650908,1779207039000,-420.0,7.617e-05,2]
[422650912,1779207039000,-500.0,7.721e-05,2]
[422650907,1779207039000,-5830.62478607,7.6e-05,2]
[422650897,1779207039000,-300.0,7.147e-05,2]
[422650899,1779207039000,-300.0,7.147e-05,2]
[422650898,1779207039000,-300.0,7.147e-05,2]
[422650900,1779207039000,-33600.67220332,7.147e-05,2]
[422650896,1779207039000,-300.0,7.147e-05,2]
[422650892,1779207039000,-300.0,7.147e-05,2]
[422650894,1779207039000,-300.0,7.147e-05,2]
[422650895,1779207039000,-300.0,7.147e-05,2]
[422650911,1779207039000,-500.0,7.721e-05,2]
[422650893,1779207039000,-300.0,7.147e-05,2]
[422650932,1779207039000,-500.0,7.721e-05,2]
[422650913,1779207039000,-500.0,7.721e-05,2]
[422650902,1779207039000,-600.0,7.289e-05,2]
[422650903,1779207039000,-4506.86742033,7.502e-05,2]
[422650901,1779207039000,-775.56549,7.217e-05,2]
[422650904,1779207039000,-134.7026728,7.502e-05,2]
[422650905,1779207039000,-775.56549,7.509e-05,2]
[422650906,1779207039000,-714.517,7.572e-05,2]
[422650891,1779207039000,-300.0,7.147e-05,2]
[422650933,1779207039000,-500.0,7.721e-05,2]
[422650916,1779207039000,-500.0,7.721e-05,2]
[422650930,1779207039000,-500.0,7.721e-05,2]
[422650950,1779207039000,-500.0,7.721e-05,2]
[422650957,1779207039000,-500.0,7.721e-05,2]
[422650953,1779207039000,-500.0,7.721e-05,2]
[422650962,1779207039000,-500.0,7.721e-05,2]
[422650963,1779207039000,-500.0,7.721e-05,2]
[422650958,1779207039000,-500.0,7.721e-05,2]
[422650975,1779207039000,-205.27528512,7.721e-05,2]
[422650965,1779207039000,-500.0,7.721e-05,2]
[422650959,1779207039000,-500.0,7.721e-05,2]
[422650973,1779207039000,-500.0,7.721e-05,2]
[422650964,1779207039000,-500.0,7.721e-05,2]
[422650976,1779207039000,-17.70374816,7.721e-05,2]
[422650967,1779207039000,-500.0,7.721e-05,2]
[422650971,1779207039000,-439.06521334,7.721e-05,2]
[422650972,1779207039000,-500.0,7.721e-05,2]
[422650970,1779207039000,-500.0,7.721e-05,2]
[422650968,1779207039000,-500.0,7.721e-05,2]
[422650931,1779207039000,-500.0,7.721e-05,2]
[422650966,1779207039000,-500.0,7.721e-05,2]
[422650952,1779207039000,-272.46055518,7.721e-05,2]
[422650974,1779207039000,-272.79009297,7.721e-05,2]
[422650954,1779207039000,-500.0,7.721e-05,2]
[422650929,1779207039000,-500.0,7.721e-05,2]
[422650956,1779207039000,-500.0,7.721e-05,2]
[422650938,1779207039000,-500.0,7.721e-05,2]
[422650949,1779207039000,-500.0,7.721e-05,2]
[422650947,1779207039000,-500.0,7.721e-05,2]
[422650948,1779207039000,-500.0,7.721e-05,2]
[422650937,1779207039000,-500.0,7.721e-05,2]
[422650944,1779207039000,-500.0,7.721e-05,2]
[422650939,1779207039000,-500.0,7.721e-05,2]
[422650945,1779207039000,-500.0,7.721e-05,2]
[422650946,1779207039000,-500.0,7.721e-05,2]
[422650940,1779207039000,-500.0,7.721e-05,2]
[422650955,1779207039000,-500.0,7.721e-05,2]
[422650960,1779207039000,-500.0,7.721e-05,2]
[422650969,1779207039000,-500.0,7.721e-05,2]
[422650951,1779207039000,-500.0,7.721e-05,2]
[422650961,1779207039000,-500.0,7.721e-05,2]
[422650942,1779207039000,-500.0,7.721e-05,2]
[422650941,1779207039000,-500.0,7.721e-05,2]
[422650943,1779207039000,-500.0,7.721e-05,2]
[422651027,1779207047000,-500.0,7.721e-05,2]
[422651037,1779207047000,-500.0,7.721e-05,2]
[422651028,1779207047000,-500.0,7.721e-05,2]
[422651030,1779207047000,-500.0,7.721e-05,2]
[422651034,1779207047000,-500.0,7.721e-05,2]
[422651035,1779207047000,-500.0,7.721e-05,2]
[422651031,1779207047000,-500.0,7.721e-05,2]
[422651029,1779207047000,-500.0,7.721e-05,2]
[422651038,1779207047000,-500.0,7.721e-05,2]
[422651026,1779207047000,-500.0,7.721e-05,2]
[422651015,1779207047000,-482.29625184,7.721e-05,2]
[422651024,1779207047000,-500.0,7.721e-05,2]
[422651023,1779207047000,-200.0,7.721e-05,2]
[422651018,1779207047000,-500.0,7.721e-05,2]
[422651025,1779207047000,-500.0,7.721e-05,2]
[422651021,1779207047000,-500.0,7.721e-05,2]
[422651020,1779207047000,-532.35821734,7.721e-05,2]
[422651019,1779207047000,-500.0,7.721e-05,2]
[422651017,1779207047000,-500.0,7.721e-05,2]
[422651016,1779207047000,-500.0,7.721e-05,2]
[422651032,1779207047000,-500.0,7.721e-05,2]
[422651022,1779207047000,-500.0,7.721e-05,2]
[422651036,1779207047000,-500.0,7.721e-05,2]
[422651053,1779207047000,-173.46231117,8e-05,2]
[422651039,1779207047000,-257.26365889,7.721e-05,2]
[422651060,1779207047000,-1816.81261667,8.218e-05,2]
[422651055,1779207047000,-629.17718408,8.01e-05,2]
[422651058,1779207047000,-629.17718408,8.114e-05,2]
[422651059,1779207047000,-11731.73819416,8.218e-05,2]
[422651054,1779207047000,-173.46231117,8e-05,2]
[422651057,1779207047000,-775.56549,8.092e-05,2]
[422651056,1779207047000,-720.0,8.018e-05,2]
[422651033,1779207047000,-500.0,7.721e-05,2]
[422651052,1779207047000,-173.46231117,8e-05,2]
[422651044,1779207047000,-500.0,7.721e-05,2]
[422651061,1779207047000,-4492.24319218,8.218e-05,2]
[422651045,1779207047000,-500.0,7.721e-05,2]
[422651049,1779207047000,-775.56549,7.8e-05,2]
[422651046,1779207047000,-500.0,7.721e-05,2]
[422651048,1779207047000,-629.17718412,7.8e-05,2]
[422651051,1779207047000,-173.46231119,8e-05,2]
[422651040,1779207047000,-579.10926168,7.721e-05,2]
[422651041,1779207047000,-500.0,7.721e-05,2]
[422651047,1779207047000,-64303.3959658,7.724e-05,2]
[422651050,1779207047000,-629.17718408,7.905e-05,2]
[422651043,1779207047000,-500.0,7.721e-05,2]
[422651042,1779207047000,-500.0,7.721e-05,2]
[422651067,1779207304000,170.759236,3.653e-05,2]
[422651068,1779207314000,152.0,0.00015846,30]
[422651151,1779208231000,-105.11955846,8.018e-05,2]
[422651135,1779208231000,-193.891372,7.801e-05,2]
[422651149,1779208231000,-68.34275271,8.018e-05,2]
[422651137,1779208231000,-275.85642429,7.838e-05,2]
[422651139,1779208231000,-97.05534729,7.838e-05,2]
[422651156,1779208231000,-12083.67235952,8.018e-05,2]
[422651141,1779208231000,-300.0,8.017e-05,2]
[422651145,1779208231000,-300.0,8.017e-05,2]
[422651147,1779208231000,-300.0,8.017e-05,2]
[422651143,1779208231000,-300.0,8.017e-05,2]
[422651158,1779208231000,-5000.0,8.018e-05,2]
[422651153,1779208231000,-1713.6575227,8.018e-05,2]
[422651427,1779208237000,-943.065,8.018e-05,2]
[422651441,1779208238000,-12033.40121222,8.018e-05,2]
[422651801,1779208241000,-1549.6017491,8.218e-05,2]
[422651802,1779208241000,-185.60339542,8.218e-05,2]
[422651803,1779208241000,-533.21178026,8.218e-05,2]
[422651800,1779208241000,-1806.30804927,8.218e-05,2]
[422651826,1779208243000,-2260.55082107,8.218e-05,2]
[422651824,1779208243000,-12915.8620387,8.218e-05,2]
[422651822,1779208243000,-55227.11701432,8.218e-05,2]
[422651831,1779208246000,-2150.00499999,8.218e-05,2]
[422651830,1779208246000,-355.3,8.218e-05,2]
[422651834,1779208246000,-95241.511037,8.218e-05,2]
[422651837,1779208246000,-2598.86831569,8.218e-05,2]
[422651833,1779208246000,-1856.78731773,8.218e-05,2]
[422651835,1779208246000,-52882.69676401,8.218e-05,2]
[422651836,1779208246000,-483.72083231,8.218e-05,2]
[422651832,1779208246000,-47005.34122816,8.218e-05,2]
[422651848,1779208273000,-1630.94050538,8.218e-05,2]
[422651858,1779208457000,152.0,0.00015916,30]
[422651879,1779208996000,264.3880818,3.367e-05,2]
[422651893,1779209431000,-232.28055285,7.287e-05,2]
[422651890,1779209431000,-229.83432848,6.125e-05,2]
[422651892,1779209431000,-374.88155881,6.643e-05,2]
[422651891,1779209431000,-1414.3231514,6.576e-05,2]
[422651895,1779209431000,-911.40923524,7.287e-05,2]
[422651896,1779209431000,-193.891372,7.309e-05,2]
[422651894,1779209431000,-698.15084257,7.287e-05,2]
[422651898,1779209431000,-3388.0936376,7.387e-05,2]
[422651897,1779209431000,-540.06631877,7.387e-05,2]
[422651905,1779209432000,-300.0,7.481e-05,2]
[422651912,1779209432000,-4349.47193573,7.487e-05,2]
[422651910,1779209432000,-300.0,7.482e-05,2]
[422651908,1779209432000,-300.0,7.482e-05,2]
[422651916,1779209432000,-2190.6460095,7.687e-05,2]
[422651914,1779209432000,-4503.98345351,7.587e-05,2]
[422651907,1779209432000,-300.0,7.481e-05,2]
[422651903,1779209432000,-250.0,7.432e-05,2]
[422651899,1779209432000,-1200.0,7.431e-05,2]
[422652061,1779209438000,-500.0,7.916e-05,2]
[422652052,1779209438000,-500.0,7.916e-05,2]
[422652048,1779209438000,-41.3446883,7.916e-05,2]
[422652054,1779209438000,-500.0,7.916e-05,2]
[422652056,1779209438000,-500.0,7.916e-05,2]
[422652045,1779209438000,-458.6553117,7.916e-05,2]
[422652050,1779209438000,-500.0,7.916e-05,2]
[422652043,1779209438000,-323.89009266,7.916e-05,2]
[422652034,1779209438000,-500.0,7.916e-05,2]
[422652030,1779209438000,-495.697,7.787e-05,2]
[422652028,1779209438000,-5013.01111574,7.787e-05,2]
[422652037,1779209438000,-500.0,7.916e-05,2]
[422652041,1779209438000,-500.0,7.916e-05,2]
[422652036,1779209438000,-500.0,7.916e-05,2]
[422652014,1779209438000,-181.29830997,7.787e-05,2]
[422652012,1779209438000,-2580.13790567,7.687e-05,2]
[422652032,1779209438000,-500.0,7.916e-05,2]
[422652059,1779209438000,-500.0,7.916e-05,2]
[422652039,1779209438000,-333.48955498,7.916e-05,2]
[422652065,1779209438000,-500.0,7.916e-05,2]
[422652063,1779209438000,-500.0,7.916e-05,2]
[422652101,1779209438000,-22915.02475002,7.917e-05,2]
[422652103,1779209438000,-2536.51378436,7.917e-05,2]
[422652099,1779209438000,-952.97724851,7.917e-05,2]
[422652093,1779209438000,-18663.98939934,7.917e-05,2]
[422652090,1779209438000,-500.0,7.916e-05,2]
[422652095,1779209438000,-127.68686979,7.917e-05,2]
[422652085,1779209438000,-500.0,7.916e-05,2]
[422652097,1779209438000,-3757.76528044,7.917e-05,2]
[422652079,1779209438000,-500.0,7.916e-05,2]
[422652081,1779209438000,-500.0,7.916e-05,2]
[422652074,1779209438000,-500.0,7.916e-05,2]
[422652083,1779209438000,-500.0,7.916e-05,2]
[422652089,1779209438000,-500.0,7.916e-05,2]
[422652068,1779209438000,-500.0,7.916e-05,2]
[422652077,1779209438000,-500.0,7.916e-05,2]
[422652071,1779209438000,-500.0,7.916e-05,2]
[422652087,1779209438000,-500.0,7.916e-05,2]
[422652595,1779209442000,-1258.43671265,7.917e-05,2]
[422652592,1779209442000,-985.55645327,7.917e-05,2]
[422652597,1779209442000,-500.0,7.917e-05,2]
[422652609,1779209442000,-7909.01872154,7.917e-05,2]
[422652602,1779209442000,-19082.31282783,7.917e-05,2]
[422652604,1779209442000,-2634.93015018,7.917e-05,2]
[422652607,1779209442000,-1019.05201729,7.917e-05,2]
[422652652,1779209443000,-413.04863298,8.017e-05,2]
[422652649,1779209443000,-5960.49999837,7.917e-05,2]
[422652651,1779209443000,-400.45136702,7.917e-05,2]
[422652650,1779209443000,-468.942,7.917e-05,2]
[422652654,1779209443000,-603.28834027,8.017e-05,2]
[422652658,1779209443000,-891.20236046,8.017e-05,2]
[422652657,1779209443000,-989.43976024,8.017e-05,2]
[422652660,1779209443000,-186.76260022,8.017e-05,2]
[422652653,1779209443000,-576.39112726,8.017e-05,2]
[422652659,1779209443000,-98.23739978,8.017e-05,2]
[422652655,1779209443000,-386.15141997,8.017e-05,2]
[422652656,1779209443000,-989.43976024,8.017e-05,2]
[422652685,1779209446000,-1004.6619104,8.017e-05,2]
[422652680,1779209446000,-1004.6619104,8.017e-05,2]
[422652679,1779209446000,-989.43976024,8.017e-05,2]
[422652672,1779209446000,-989.43976024,8.017e-05,2]
[422652674,1779209446000,-989.43976024,8.017e-05,2]
[422652676,1779209446000,-989.43976024,8.017e-05,2]
[422652677,1779209446000,-989.43976024,8.017e-05,2]
[422652675,1779209446000,-989.43976024,8.017e-05,2]
[422652678,1779209446000,-989.43976024,8.017e-05,2]
[422652673,1779209446000,-989.43976024,8.017e-05,2]
[422652671,1779209446000,-94.19116002,8.017e-05,2]
[422652669,1779209446000,-708.486,8.017e-05,2]
[422652682,1779209446000,-1004.6619104,8.017e-05,2]
[422652681,1779209446000,-1004.6619104,8.017e-05,2]
[422652688,1779209446000,-1004.6619104,8.017e-05,2]
[422652684,1779209446000,-1004.6619104,8.017e-05,2]
[422652683,1779209446000,-1004.6619104,8.017e-05,2]
[422652698,1779209446000,-2629.23665974,8.018e-05,2]
[422652697,1779209446000,-24948.38733762,8.018e-05,2]
[422652695,1779209446000,-276.5150003,8.018e-05,2]
[422652694,1779209446000,-9843.96934719,8.018e-05,2]
[422652693,1779209446000,-46355.38751532,8.018e-05,2]
[422652696,1779209446000,-63614.1874677,8.018e-05,2]
[422652691,1779209446000,-991.69853091,8.017e-05,2]
[422652692,1779209446000,-19896.44929406,8.018e-05,2]
[422652686,1779209446000,-1004.6619104,8.017e-05,2]
[422652690,1779209446000,-991.69853091,8.017e-05,2]
[422652689,1779209446000,-991.69853091,8.017e-05,2]
[422652687,1779209446000,-1004.6619104,8.017e-05,2]
[422652703,1779209751000,152.0,0.00015905,30]
[422652706,1779209890000,152.0,0.00015384,30]
[422652710,1779209912000,-385.29970571,7.815e-05,2]
[422652708,1779209912000,-193.891372,7.702e-05,2]
[422652707,1779209912000,-216.794795,6.923e-05,2]
[422652709,1779209912000,-300.0,7.814e-05,2]
[422652712,1779209912000,-300.0,7.815e-05,2]
[422652715,1779209912000,-1804.01412729,7.816e-05,2]
[422652714,1779209912000,-1200.0,7.815e-05,2]
[422652713,1779209912000,-300.0,7.815e-05,2]
[422652711,1779209912000,-300.0,7.815e-05,2]
[422652716,1779209913000,-5000.0,7.816e-05,2]
[422652717,1779209914000,-5000.0,7.816e-05,2]
[422652719,1779209915000,-5000.0,7.816e-05,2]
[422652718,1779209915000,-5000.0,7.816e-05,2]
[422652725,1779209916000,-500.0,7.816e-05,2]
[422652720,1779209916000,-5000.0,7.816e-05,2]
[422652721,1779209916000,-5000.0,7.816e-05,2]
[422652722,1779209916000,-259.98563357,7.816e-05,2]
[422652723,1779209916000,-500.0,7.816e-05,2]
[422652724,1779209916000,-500.0,7.816e-05,2]
[422652731,1779209916000,-500.0,7.816e-05,2]
[422652727,1779209916000,-500.0,7.816e-05,2]
[422652732,1779209916000,-240.01436643,7.816e-05,2]
[422652730,1779209916000,-500.0,7.816e-05,2]
[422652726,1779209916000,-500.0,7.816e-05,2]
[422652728,1779209916000,-500.0,7.816e-05,2]
[422652729,1779209916000,-500.0,7.816e-05,2]
[422652733,1779209917000,-259.98563357,7.816e-05,2]
[422652734,1779209917000,-500.0,7.816e-05,2]
[422652735,1779209917000,-500.0,7.816e-05,2]
[422652736,1779209917000,-500.0,7.816e-05,2]
[422652738,1779209917000,-500.0,7.816e-05,2]
[422652737,1779209917000,-500.0,7.816e-05,2]
[422652739,1779209917000,-500.0,7.816e-05,2]
[422652740,1779209917000,-500.0,7.816e-05,2]
[422652742,1779209917000,-500.0,7.816e-05,2]
[422652743,1779209917000,-240.01436643,7.816e-05,2]
[422652745,1779209917000,-500.0,7.816e-05,2]
[422652746,1779209917000,-500.0,7.816e-05,2]
[422652744,1779209917000,-259.98563357,7.816e-05,2]
[422652748,1779209917000,-500.0,7.816e-05,2]
[422652741,1779209917000,-500.0,7.816e-05,2]
[422652747,1779209917000,-500.0,7.816e-05,2]
[422652763,1779209917000,-500.0,7.816e-05,2]
[422652749,1779209917000,-500.0,7.816e-05,2]
[422652761,1779209917000,-500.0,7.816e-05,2]
[422652760,1779209917000,-500.0,7.816e-05,2]
[422652759,1779209917000,-600.0,7.816e-05,2]
[422652758,1779209917000,-500.0,7.816e-05,2]
[422652757,1779209917000,-500.0,7.816e-05,2]
[422652762,1779209917000,-500.0,7.816e-05,2]
[422652755,1779209917000,-59.98563357,7.816e-05,2]
[422652753,1779209917000,-300.0,7.816e-05,2]
[422652754,1779209917000,-440.01436643,7.816e-05,2]
[422652752,1779209917000,-500.0,7.816e-05,2]
[422652751,1779209917000,-500.0,7.816e-05,2]
[422652750,1779209917000,-500.0,7.816e-05,2]
[422652756,1779209917000,-500.0,7.816e-05,2]
[422652775,1779209918000,-500.0,7.816e-05,2]
[422652774,1779209918000,-500.0,7.816e-05,2]
[422652773,1779209918000,-500.0,7.816e-05,2]
[422652771,1779209918000,-500.0,7.816e-05,2]
[422652772,1779209918000,-619.86629703,7.816e-05,2]
[422652769,1779209918000,-500.0,7.816e-05,2]
[422652766,1779209918000,-159.98563357,7.816e-05,2]
[422652768,1779209918000,-500.0,7.816e-05,2]
[422652767,1779209918000,-519.6147549,7.816e-05,2]
[422652765,1779209918000,-340.01436643,7.816e-05,2]
[422652764,1779209918000,-500.0,7.816e-05,2]
[422652776,1779209918000,-200.5333145,7.816e-05,2]
[422652770,1779209918000,-500.0,7.816e-05,2]
[422652777,1779209918000,-299.4666855,7.816e-05,2]
[422652790,1779209918000,-500.0,7.816e-05,2]
[422652780,1779209918000,-500.0,7.816e-05,2]
[422652793,1779209918000,-500.0,7.816e-05,2]
[422652791,1779209918000,-500.0,7.816e-05,2]
[422652778,1779209918000,-500.0,7.816e-05,2]
[422652789,1779209918000,-500.0,7.816e-05,2]
[422652788,1779209918000,-299.4666855,7.816e-05,2]
[422652787,1779209918000,-200.5333145,7.816e-05,2]
[422652792,1779209918000,-500.0,7.816e-05,2]
[422652785,1779209918000,-500.0,7.816e-05,2]
[422652784,1779209918000,-500.0,7.816e-05,2]
[422652782,1779209918000,-500.0,7.816e-05,2]
[422652783,1779209918000,-500.0,7.816e-05,2]
[422652781,1779209918000,-500.0,7.816e-05,2]
[422652779,1779209918000,-500.0,7.816e-05,2]
[422652786,1779209918000,-500.0,7.816e-05,2]
[422652795,1779209919000,-518.72611218,7.816e-05,2]
[422652796,1779209919000,-500.0,7.816e-05,2]
[422652794,1779209919000,-500.0,7.816e-05,2]
[422652797,1779209919000,-500.0,7.816e-05,2]
[422652798,1779209919000,-181.80720232,7.816e-05,2]
[422652799,1779209919000,-685.44854783,7.816e-05,2]
[422652800,1779209919000,-867.25575015,7.816e-05,2]
[422652802,1779209919000,-867.25575015,7.816e-05,2]
[422652801,1779209919000,-867.25575015,7.816e-05,2]
[422652804,1779209919000,-845.52845157,7.816e-05,2]
[422652812,1779209919000,-225.26179948,7.816e-05,2]
[422652810,1779209919000,-867.25575015,7.816e-05,2]
[422652809,1779209919000,-867.25575015,7.816e-05,2]
[422652811,1779209919000,-641.99395067,7.816e-05,2]
[422652803,1779209919000,-867.25575015,7.816e-05,2]
[422652806,1779209919000,-867.25575015,7.816e-05,2]
[422652807,1779209919000,-867.25575015,7.816e-05,2]
[422652805,1779209919000,-21.72729858,7.816e-05,2]
[422652808,1779209919000,-867.25575015,7.816e-05,2]
[422652813,1779209920000,-867.25575015,7.816e-05,2]
[422652814,1779209920000,-867.25575015,7.816e-05,2]
[422652815,1779209920000,-867.25575015,7.816e-05,2]
[422652816,1779209920000,-932.29993142,7.816e-05,2]
[422652818,1779209920000,-308.37108723,7.816e-05,2]
[422652819,1779209920000,-623.92884419,7.816e-05,2]
[422652820,1779209920000,-932.29993142,7.816e-05,2]
[422652821,1779209920000,-932.29993142,7.816e-05,2]
[422652817,1779209920000,-932.29993142,7.816e-05,2]
[422652824,1779209920000,-646.87143013,7.816e-05,2]
[422652823,1779209920000,-932.29993142,7.816e-05,2]
[422652826,1779209920000,-932.29993142,7.816e-05,2]
[422652825,1779209920000,-285.42850129,7.816e-05,2]
[422652828,1779209920000,-1177.40459082,7.816e-05,2]
[422652827,1779209920000,-1177.40459082,7.816e-05,2]
[422652829,1779209920000,-279.61434068,7.817e-05,2]
[422652830,1779209920000,-1147.84804497,7.817e-05,2]
[422652822,1779209920000,-932.29993142,7.816e-05,2]
[422652831,1779209921000,-5000.0,7.817e-05,2]
[422652832,1779209922000,319400.0,0.00016,30]
[422652833,1779209924000,-5000.0,7.817e-05,2]
[422652834,1779209924000,-5000.0,7.817e-05,2]
[422652836,1779209925000,-5000.0,7.817e-05,2]
[422652835,1779209925000,-5000.0,7.817e-05,2]
[422652837,1779209926000,-5000.0,7.817e-05,2]
[422652838,1779209927000,-5000.0,7.817e-05,2]
[422652839,1779209932000,-1000.0,7.817e-05,2]
[422652840,1779209933000,-1000.0,7.817e-05,2]
[422652841,1779209933000,-1000.0,7.817e-05,2]
[422652842,1779209933000,-1000.0,7.817e-05,2]
[422652845,1779209934000,-1000.0,7.817e-05,2]
[422652844,1779209934000,-1000.0,7.817e-05,2]
[422652843,1779209934000,-1000.0,7.817e-05,2]
[422652848,1779209935000,-1000.0,7.817e-05,2]
[422652847,1779209935000,-1000.0,7.817e-05,2]
[422652846,1779209935000,-1000.0,7.817e-05,2]
[422652851,1779209936000,-1000.0,7.817e-05,2]
[422652850,1779209936000,-1000.0,7.817e-05,2]
[422652849,1779209936000,-1000.0,7.817e-05,2]
[422652853,1779209937000,-1000.0,7.817e-05,2]
[422652852,1779209937000,-1000.0,7.817e-05,2]
[422652856,1779209938000,-1000.0,7.817e-05,2]
[422652855,1779209938000,-1000.0,7.817e-05,2]
[422652854,1779209938000,-1000.0,7.817e-05,2]
[422652859,1779209939000,-1000.0,7.817e-05,2]
[422652858,1779209939000,-1000.0,7.817e-05,2]
[422652857,1779209939000,-1000.0,7.817e-05,2]
[422652861,1779209940000,-1000.0,7.817e-05,2]
[422652860,1779209940000,-1000.0,7.817e-05,2]
[422652864,1779209941000,-1000.0,7.817e-05,2]
[422652863,1779209941000,-1000.0,7.817e-05,2]
[422652862,1779209941000,-1000.0,7.817e-05,2]
[422652867,1779209942000,-1000.0,7.817e-05,2]
[422652865,1779209942000,-300.0,7.816e-05,2]
[422652866,1779209942000,-700.0,7.817e-05,2]
[422652868,1779209943000,-1000.0,7.817e-05,2]
[422652870,1779209943000,-1000.0,7.817e-05,2]
[422652869,1779209943000,-1000.0,7.817e-05,2]
[422652872,1779209944000,-1000.0,7.817e-05,2]
[422652871,1779209944000,-1000.0,7.817e-05,2]
[422652874,1779209945000,-1000.0,7.817e-05,2]
[422652873,1779209945000,-1000.0,7.817e-05,2]
[422652882,1779209946000,-1000.0,7.817e-05,2]
[422652878,1779209946000,-1000.0,7.817e-05,2]
[422652880,1779209946000,-1000.0,7.817e-05,2]
[422652888,1779209947000,-1000.0,7.817e-05,2]
[422652892,1779209948000,-1000.0,7.817e-05,2]
[422652893,1779209952000,-2000.0,7.817e-05,2]
[422652895,1779209953000,-2000.0,7.817e-05,2]
[422652894,1779209953000,-2000.0,7.817e-05,2]
[422652897,1779209954000,-2000.0,7.817e-05,2]
[422652896,1779209954000,-2000.0,7.817e-05,2]
[422652898,1779209959000,-200.0,7.817e-05,2]
[422652899,1779209960000,-200.0,7.817e-05,2]
[422652901,1779209961000,-200.0,7.817e-05,2]
[422652900,1779209961000,-200.0,7.817e-05,2]
[422652902,1779209962000,-200.0,7.817e-05,2]
[422652903,1779209962000,-200.0,7.817e-05,2]
[422652906,1779209963000,-200.0,7.817e-05,2]
[422652905,1779209963000,-200.0,7.817e-05,2]
[422652904,1779209963000,-200.0,7.817e-05,2]
[422652909,1779209964000,-200.0,7.817e-05,2]
[422652908,1779209964000,-200.0,7.817e-05,2]
[422652907,1779209964000,-200.0,7.817e-05,2]
[422652911,1779209965000,-200.0,7.817e-05,2]
[422652910,1779209965000,-200.0,7.817e-05,2]
[422652912,1779209966000,-200.0,7.817e-05,2]
[422652914,1779209966000,-200.0,7.817e-05,2]
[422652913,1779209966000,-200.0,7.817e-05,2]
[422652916,1779209967000,-200.0,7.817e-05,2]
[422652915,1779209967000,-200.0,7.817e-05,2]
[422652917,1779209968000,-200.0,7.817e-05,2]
[422652919,1779209969000,-200.0,7.817e-05,2]
[422652918,1779209969000,-200.0,7.817e-05,2]
[422652921,1779209970000,-200.0,7.817e-05,2]
[422652920,1779209970000,-200.0,7.817e-05,2]
[422652922,1779209971000,-200.0,7.817e-05,2]
[422652923,1779209971000,-200.0,7.817e-05,2]
[422652925,1779209972000,-200.0,7.817e-05,2]